fUSD/lending_fUSD_20240425
["ID","MTS","AMOUNT","RATE_DAILY","PERIOD"]
[323517404,1714063838937,-500.0,0.00010958,2]
[323517405,1714063838947,-815.47,0.00010958,2]
[323517406,1714063838956,-500.0,0.00010958,2]
[323517407,1714063838966,-564.65,0.00010958,2]
[323517408,1714063838975,-500.0,0.00010958,2]
[323517409,1714063838984,-500.0,0.00010958,2]
[323517410,1714063838994,-500.0,0.00010958,2]
[323517411,1714063839003,-500.0,0.00010958,2]
[323517412,1714063839013,-500.0,0.00010958,2]
[323517413,1714063839023,-500.0,0.00010958,2]
[323517414,1714063839032,-916.57,0.00010958,2]
[323517415,1714063839042,-500.0,0.00010958,2]
[323517416,1714063839051,-500.0,0.00010958,2]
[323517417,1714063839240,-1126.47,0.00010958,2]
[323517418,1714063839250,-500.0,0.00010958,2]
[323517419,1714063839260,-500.0,0.00010958,2]
[323517420,1714063839269,-789.05,0.00010958,2]
[323517421,1714063839280,-500.0,0.00010958,2]
[323517422,1714063839290,-809.84,0.00010958,2]
[323517423,1714063839299,-500.0,0.00010958,2]
[323517424,1714063839309,-888.75,0.00010959,2]
[323517425,1714063839319,-6988.41,0.00010959,2]
[323517426,1714063839328,-150.0,0.00010959,2]
[323517427,1714063839338,-4748.76762804,0.00010959,7]
[323517428,1714063839347,-500.0,0.0001099,2]
[323517429,1714063839356,-209.20548566,0.00010991,2]
[323517430,1714063839366,-501.38374527,0.00010991,2]
[323517431,1714063839375,-500.0,0.00010991,2]
[323517432,1714063839384,-500.0,0.00010991,2]
[323517433,1714063839393,-500.0,0.00010991,2]
[323517434,1714063839403,-500.0,0.00010991,2]
[323517435,1714063839412,-500.0,0.00010991,2]
[323517436,1714063839421,-560.44370937,0.00010991,2]
[323517437,1714063839431,-570.26876768,0.00010991,2]
[323517438,1714063839440,-500.0,0.00010991,2]
[323517439,1714063839449,-500.0,0.00010991,2]
[323517440,1714063839459,-500.0,0.00010991,2]
[323517441,1714063839469,-501.529165,0.00010991,2]
[323517442,1714063839478,-500.0,0.00010991,2]
[323517443,1714063839490,-500.44914781,0.00010991,2]
[323517444,1714063839499,-500.0,0.00010991,2]
[323517445,1714063839508,-500.0,0.00010991,2]
[323517446,1714063839518,-500.0,0.00010991,2]
[323517447,1714063839528,-501.03674074,0.00010991,2]
[323517448,1714063839537,-500.0,0.00010991,2]
[323517449,1714063839547,-500.71300312,0.00010991,2]
[323517450,1714063839556,-500.62293222,0.00010991,2]
[323517451,1714063839565,-500.0,0.00010991,2]
[323517452,1714063839575,-390.02991804,0.00010991,2]
[323517453,1714063839584,-500.0,0.00010991,2]
[323517454,1714063839593,-500.0,0.00010991,2]
[323517455,1714063839602,-500.0,0.00010991,2]
[323517456,1714063839611,-155.0,0.00010991,2]
[323517457,1714063839620,-610.98228989,0.00011,2]
[323517458,1714063839630,-177.64937444,0.00011,2]
[323517459,1714063839640,-150.0,0.00011001,2]
[323517460,1714063839650,-150.0,0.00011006,2]
[323517461,1714063839659,-1745.88,0.00011041,2]
[323517462,1714063839669,-675.21240002,0.00011078,2]
[323517463,1714063839678,-150.0,0.000111,2]
[323517464,1714063839688,-3100.0,0.000111,4]
[323517465,1714063839698,-576.35314372,0.00011119,2]
[323517466,1714063839707,-83294.7404,0.00011164,2]
[323517467,1714063839718,-1000.0,0.00011164,2]
[323517468,1714063839728,-500.0,0.00011165,2]
[323517469,1714063839740,-418.94,0.00011178,2]
[323517470,1714063839750,-150.0,0.00011178,2]
[323517471,1714063839760,-150.0,0.00011178,2]
[323517472,1714063839770,-4600.0,0.000112,4]
[323517473,1714063839779,-9556.21,0.00011214,2]
[323517474,1714063839788,-2012.88,0.00011231,2]
[323517475,1714063839798,-3006.73,0.00011231,2]
[323517476,1714063839808,-1288.23,0.00011231,2]
[323517477,1714063839818,-500.0,0.00011232,2]
[323517478,1714063839828,-500.0,0.00011232,2]
[323517479,1714063839838,-500.0,0.00011232,2]
[323517480,1714063839847,-500.0,0.00011232,2]
[323517481,1714063839857,-380.15777786,0.00011232,2]
[323517482,1714063839867,-509.28,0.00011232,2]
[323517483,1714063839877,-500.0,0.00011232,2]
[323517484,1714063839886,-500.0,0.00011232,2]
[323517485,1714063839895,-500.0,0.00011232,2]
[323517486,1714063839904,-500.0,0.00011232,2]
[323517487,1714063839914,-500.0,0.00011232,2]
[323517488,1714063839923,-500.0,0.00011232,2]
[323517489,1714063839933,-542.13,0.00011232,2]
[323517490,1714063839942,-500.0,0.00011232,2]
[323517491,1714063839951,-500.0,0.00011232,2]
[323517492,1714063839961,-511.12,0.00011232,2]
[323517493,1714063839970,-500.0,0.00011232,2]
[323517494,1714063839979,-500.0,0.00011232,2]
[323517495,1714063839990,-500.0,0.00011232,2]
[323517496,1714063839999,-500.0,0.00011232,2]
[323517497,1714063840008,-608.42,0.00011232,2]
[323517498,1714063840017,-584.58,0.00011232,2]
[323517499,1714063840027,-500.0,0.00011232,2]
[323517500,1714063840036,-229.90496146,0.00011232,2]
[323517501,1714063840045,-823.13,0.00011232,2]
[323517502,1714063840054,-661.3,0.00011232,2]
[323517503,1714063840063,-500.0,0.00011232,2]
[323517504,1714063840073,-500.0,0.00011232,2]
[323517505,1714063840082,-500.0,0.00011232,2]
[323517506,1714063840091,-500.0,0.00011232,2]
[323517507,1714063840101,-500.0,0.00011232,2]
[323517508,1714063840110,-500.0,0.00011232,2]
[323517509,1714063840120,-546.82,0.00011232,2]
[323517510,1714063840129,-863.82,0.00011232,2]
[323517511,1714063840139,-500.0,0.00011232,2]
[323517512,1714063840149,-500.0,0.00011232,2]
[323517513,1714063840158,-500.0,0.00011232,2]
[323517514,1714063840168,-500.0,0.00011232,2]
[323517515,1714063840178,-500.0,0.00011232,2]
[323517516,1714063840187,-565.42,0.00011232,2]
[323517517,1714063840196,-500.01,0.00011232,2]
[323517518,1714063840205,-500.0,0.00011232,2]
[323517519,1714063840215,-500.0,0.00011232,2]
[323517520,1714063840225,-604.05,0.00011232,2]
[323517521,1714063840240,-500.0,0.00011232,2]
[323517522,1714063840249,-871.58,0.00011232,2]
[323517523,1714063840259,-516.2,0.00011232,2]
[323517524,1714063840271,-658.63,0.00011232,2]
[323517525,1714063840281,-500.0,0.00011232,2]
[323517526,1714063840290,-500.0,0.00011232,2]
[323517527,1714063840300,-500.0,0.00011232,2]
[323517528,1714063840311,-500.0,0.00011232,2]
[323517529,1714063840320,-500.0,0.00011232,2]
[323517530,1714063840330,-571.72,0.00011232,2]
[323517531,1714063840339,-500.0,0.00011232,2]
[323517532,1714063840349,-550.53,0.00011232,2]
[323517533,1714063840358,-500.0,0.00011232,2]
[323517534,1714063840367,-453.99183003,0.00011232,2]
[323517535,1714063840377,-500.0,0.00011232,2]
[323517536,1714063840386,-500.0,0.00011232,2]
[323517537,1714063840395,-617.07,0.00011232,2]
[323517538,1714063840404,-718.18,0.00011232,2]
[323517539,1714063840414,-420.56,0.00011232,2]
[323517540,1714063840423,-500.0,0.00011232,2]
[323517541,1714063840432,-591.6,0.00011232,2]
[323517543,1714063840441,-500.0,0.00011232,2]
[323517544,1714063840451,-500.0,0.00011232,2]
[323517545,1714063840460,-500.0,0.00011232,2]
[323517546,1714063840469,-500.0,0.00011232,2]
[323517547,1714063840478,-500.0,0.00011232,2]
[323517548,1714063840489,-500.0,0.00011232,2]
[323517550,1714063840498,-500.0,0.00011232,2]
[323517551,1714063840507,-977.6,0.00011232,2]
[323517552,1714063840516,-664.89,0.00011232,2]
[323517553,1714063840525,-500.0,0.00011232,2]
[323517554,1714063840534,-802.15,0.00011232,2]
[323517555,1714063840543,-298.48,0.00011232,2]
[323517556,1714063840552,-500.0,0.00011232,2]
[323517557,1714063840561,-500.0,0.00011232,2]
[323517558,1714063840570,-500.0,0.00011232,2]
[323517559,1714063840579,-500.0,0.00011232,2]
[323517560,1714063840589,-500.0,0.00011232,2]
[323517561,1714063840598,-500.0,0.00011232,2]
[323517562,1714063840607,-500.0,0.00011232,2]
[323517563,1714063840617,-500.0,0.00011232,2]
[323517564,1714063840626,-500.0,0.00011232,2]
[323517565,1714063840635,-500.0,0.00011232,2]
[323517566,1714063840644,-658.48,0.00011232,2]
[323517567,1714063840653,-500.0,0.00011232,2]
[323517568,1714063840662,-500.0,0.00011232,2]
[323517569,1714063840671,-500.0,0.00011232,2]
[323517570,1714063840680,-500.0,0.00011232,2]
[323517571,1714063840690,-500.0,0.00011232,2]
[323517572,1714063840699,-500.0,0.00011232,2]
[323517573,1714063840708,-320.08291824,0.00011232,2]
[323517574,1714063840717,-500.0,0.00011232,2]
[323517575,1714063840726,-500.0,0.00011232,2]
[323517576,1714063840736,-575.23,0.00011232,2]
[323517577,1714063840745,-500.0,0.00011232,2]
[323517578,1714063840755,-500.0,0.00011232,2]
[323517579,1714063840764,-800.52,0.00011232,2]
[323517580,1714063840773,-500.0,0.00011232,2]
[323517581,1714063840782,-586.01,0.00011232,2]
[323517582,1714063840791,-522.82,0.00011232,2]
[323517583,1714063840800,-500.0,0.00011232,2]
[323517584,1714063840809,-500.0,0.00011232,2]
[323517585,1714063840818,-500.0,0.00011232,2]
[323517586,1714063840827,-500.0,0.00011232,2]
[323517587,1714063840836,-500.0,0.00011232,2]
[323517588,1714063840845,-150.0,0.00011232,2]
[323517589,1714063840854,-500.0,0.00011232,2]
[323517590,1714063840864,-500.0,0.00011232,2]
[323517591,1714063840873,-500.0,0.00011232,2]
[323517592,1714063840883,-500.0,0.00011232,2]
[323517593,1714063840892,-500.0,0.00011232,2]
[323517594,1714063840901,-500.0,0.00011232,2]
[323517595,1714063840910,-500.0,0.00011232,2]
[323517596,1714063840919,-500.0,0.00011232,2]
[323517597,1714063840928,-500.0,0.00011232,2]
[323517598,1714063840938,-500.0,0.00011232,2]
[323517599,1714063840946,-500.0,0.00011232,2]
[323517600,1714063840956,-500.0,0.00011232,2]
[323517601,1714063840966,-500.0,0.00011232,2]
[323517602,1714063840976,-592.67,0.00011232,2]
[323517603,1714063840986,-500.0,0.00011232,2]
[323517604,1714063840995,-592.91,0.00011232,2]
[323517605,1714063841005,-500.0,0.00011232,2]
[323517606,1714063841014,-691.94,0.00011232,2]
[323517607,1714063841024,-500.0,0.00011232,2]
[323517608,1714063841033,-500.0,0.00011232,2]
[323517609,1714063841041,-500.0,0.00011232,2]
[323517610,1714063841051,-500.0,0.00011232,2]
[323517611,1714063841060,-500.0,0.00011232,2]
[323517612,1714063841069,-500.0,0.00011232,2]
[323517613,1714063841078,-569.56,0.00011232,2]
[323517614,1714063841088,-692.68,0.00011232,2]
[323517615,1714063841098,-500.0,0.00011232,2]
[323517616,1714063841107,-500.0,0.00011232,2]
[323517617,1714063841117,-500.0,0.00011232,2]
[323517618,1714063841126,-4681.31,0.00011232,2]
[323517619,1714063841136,-500.0,0.00011232,2]
[323517620,1714063841146,-500.0,0.00011232,2]
[323517621,1714063841155,-500.0,0.00011232,2]
[323517622,1714063841164,-781.37,0.00011232,2]
[323517623,1714063841173,-500.0,0.00011232,2]
[323517624,1714063841182,-500.0,0.00011232,2]
[323517625,1714063841192,-1847.03,0.00011232,2]
[323517626,1714063841202,-1849.43,0.00011232,2]
[323517627,1714063841212,-500.0,0.00011232,2]
[323517628,1714063841226,-1061.04,0.00011232,2]
[323517629,1714063841249,-451.80518514,0.00011232,2]
[323517630,1714063841265,-500.0,0.00011232,2]
[323517631,1714063841276,-500.0,0.00011232,2]
[323517632,1714063841286,-8599.31,0.00011232,2]
[323517633,1714063841297,-500.0,0.00011232,2]
[323517634,1714063841306,-500.0,0.00011232,2]
[323517635,1714063841315,-500.0,0.00011232,2]
[323517636,1714063841325,-500.0,0.00011232,2]
[323517637,1714063841334,-907.76,0.00011232,2]
[323517638,1714063841343,-644.68,0.00011232,2]
[323517639,1714063841352,-925.51,0.00011232,2]
[323517640,1714063841362,-500.0,0.00011232,2]
[323517641,1714063841371,-775.97,0.00011232,2]
[323517642,1714063841381,-197.90761737,0.00011232,2]
[323517643,1714063841391,-500.0,0.00011232,2]
[323517644,1714063841401,-1668.07,0.00011232,2]
[323517645,1714063841410,-500.0,0.00011232,2]
[323517646,1714063841423,-515.92,0.00011232,2]
[323517647,1714063841432,-500.0,0.00011232,2]
[323517648,1714063841444,-321.0184555,0.00011232,2]
[323517649,1714063841453,-9433.81,0.00011232,2]
[323517650,1714063841463,-500.0,0.00011232,2]
[323517651,1714063841472,-500.0,0.00011232,2]
[323517652,1714063841482,-613.24,0.00011232,2]
[323517653,1714063841492,-1154.85,0.00011232,2]
[323517654,1714063841501,-500.0,0.00011232,2]
[323517655,1714063841510,-588.18,0.00011232,2]
[323517656,1714063841519,-500.0,0.00011232,2]
[323517657,1714063841528,-500.0,0.00011232,2]
[323517658,1714063841538,-500.0,0.00011232,2]
[323517659,1714063841547,-500.0,0.00011232,2]
[323517660,1714063841557,-500.0,0.00011232,2]
[323517661,1714063841566,-500.0,0.00011232,2]
[323517662,1714063841576,-1054.04,0.00011232,2]
[323517663,1714063841585,-760.28,0.00011232,2]
[323517664,1714063841594,-500.0,0.00011232,2]
[323517665,1714063841603,-500.0,0.00011232,2]
[323517666,1714063841612,-500.0,0.00011232,2]
[323517667,1714063841621,-500.0,0.00011232,2]
[323517668,1714063841630,-500.0,0.00011232,2]
[323517669,1714063841640,-500.0,0.00011232,2]
[323517670,1714063841649,-500.0,0.00011232,2]
[323517671,1714063841658,-885.62,0.00011232,2]
[323517672,1714063841667,-500.0,0.00011232,2]
[323517673,1714063841676,-500.0,0.00011232,2]
[323517674,1714063841686,-534.31,0.00011232,2]
[323517675,1714063841695,-16801.35,0.00011232,2]
[323517676,1714063841704,-500.0,0.00011232,2]
[323517677,1714063841713,-500.0,0.00011232,2]
[323517678,1714063841722,-23756.22,0.00011232,2]
[323517679,1714063841731,-1400.86,0.00011232,2]
[323517680,1714063841743,-500.0,0.00011232,2]
[323517681,1714063841752,-378.33,0.00011232,2]
[323517682,1714063841762,-601.41,0.00011232,2]
[323517683,1714063841771,-500.0,0.00011232,2]
[323517684,1714063841780,-1863.95,0.00011232,2]
[323517685,1714063841790,-500.0,0.00011232,2]
[323517686,1714063841799,-500.0,0.00011232,2]
[323517687,1714063841808,-500.0,0.00011232,2]
[323517688,1714063841817,-500.0,0.00011232,2]
[323517689,1714063841826,-500.0,0.00011232,2]
[323517690,1714063841835,-500.0,0.00011232,2]
[323517691,1714063841844,-557.45,0.00011232,2]
[323517692,1714063841853,-500.0,0.00011232,2]
[323517693,1714063841862,-500.0,0.00011232,2]
[323517694,1714063841871,-500.0,0.00011232,2]
[323517695,1714063841881,-964.3,0.00011232,2]
[323517696,1714063841891,-658.14,0.00011232,2]
[323517697,1714063841900,-720.39,0.00011232,2]
[323517698,1714063841909,-500.0,0.00011232,2]
[323517699,1714063841918,-593.85,0.00011232,2]
[323517700,1714063841928,-747.63,0.00011232,2]
[323517701,1714063841937,-2957.32,0.00011232,2]
[323517702,1714063841946,-639.24,0.00011232,2]
[323517703,1714063841955,-500.0,0.00011232,2]
[323517704,1714063841964,-500.0,0.00011232,2]
[323517705,1714063841974,-500.0,0.00011232,2]
[323517706,1714063841983,-500.0,0.00011232,2]
[323517707,1714063841994,-500.0,0.00011232,2]
[323517708,1714063842003,-500.0,0.00011232,2]
[323517709,1714063842012,-548.79,0.00011232,2]
[323517710,1714063842021,-1278.96,0.00011232,2]
[323517711,1714063842030,-500.0,0.00011232,2]
[323517712,1714063842039,-616.92,0.00011232,2]
[323517713,1714063842049,-500.0,0.00011232,2]
[323517714,1714063842058,-500.0,0.00011232,2]
[323517715,1714063842067,-598.98,0.00011232,2]
[323517716,1714063842077,-500.0,0.00011232,2]
[323517717,1714063842087,-203.92,0.00011232,2]
[323517718,1714063842096,-500.0,0.00011232,2]
[323517719,1714063842106,-500.0,0.00011232,2]
[323517720,1714063842116,-686.66,0.00011232,2]
[323517721,1714063842125,-1007.65,0.00011232,2]
[323517722,1714063842134,-484.27431722,0.00011232,2]
[323517723,1714063842144,-500.0,0.00011232,2]
[323517724,1714063842153,-500.0,0.00011232,2]
[323517725,1714063842163,-1504.18,0.00011232,2]
[323517726,1714063842172,-500.0,0.00011232,2]
[323517727,1714063842182,-500.0,0.00011232,2]
[323517728,1714063842192,-943.48,0.00011232,2]
[323517729,1714063842201,-500.0,0.00011232,2]
[323517730,1714063842211,-500.0,0.00011232,2]
[323517731,1714063842220,-943.9,0.00011232,2]
[323517732,1714063842235,-500.0,0.00011232,2]
[323517733,1714063842247,-500.0,0.00011232,2]
[323517734,1714063842257,-1059.02,0.00011232,2]
[323517735,1714063842267,-500.0,0.00011232,2]
[323517736,1714063842279,-176.10559114,0.00011232,2]
[323517737,1714063842294,-993.09,0.00011232,2]
[323517738,1714063842304,-500.0,0.00011232,2]
[323517739,1714063842313,-500.0,0.00011232,2]
[323517740,1714063842324,-997.54,0.00011232,2]
[323517741,1714063842333,-500.0,0.00011232,2]
[323517742,1714063842343,-500.0,0.00011232,2]
[323517743,1714063842352,-3762.7,0.00011232,2]
[323517744,1714063842362,-500.0,0.00011232,2]
[323517745,1714063842371,-500.0,0.00011232,2]
[323517746,1714063842559,-899.78,0.00011232,2]
[323517747,1714063842570,-756.22,0.00011232,2]
[323517748,1714063842580,-697.2,0.00011232,2]
[323517749,1714063842590,-604.7,0.00011232,2]
[323517750,1714063842599,-500.0,0.00011232,2]
[323517751,1714063842609,-500.0,0.00011232,2]
[323517752,1714063842619,-500.0,0.00011232,2]
[323517753,1714063842629,-500.0,0.00011232,2]
[323517754,1714063842639,-550.16,0.00011232,2]
[323517755,1714063842648,-500.0,0.00011232,2]
[323517756,1714063842658,-319.81625997,0.00011232,2]
[323517757,1714063842668,-500.0,0.00011232,2]
[323517759,1714063842678,-3028.49,0.00011232,2]
[323517762,1714063842688,-500.0,0.00011232,2]
[323517763,1714063842697,-500.0,0.00011232,2]
[323517765,1714063842707,-500.0,0.00011232,2]
[323517766,1714063842716,-640.99,0.00011232,2]
[323517767,1714063842725,-617.0,0.00011232,2]
[323517768,1714063842735,-572.16,0.00011232,2]
[323517769,1714063842747,-500.0,0.00011232,2]
[323517770,1714063842757,-3038.24,0.00011232,2]
[323517771,1714063842766,-500.0,0.00011232,2]
[323517772,1714063842776,-823.42,0.00011232,2]
[323517773,1714063842785,-714.72,0.00011232,2]
[323517774,1714063842796,-500.0,0.00011232,2]
[323517776,1714063842805,-500.0,0.00011232,2]
[323517778,1714063842815,-203.51513972,0.00011232,2]
[323517780,1714063842823,-883.12,0.00011232,2]
[323517782,1714063842832,-3199.07,0.00011232,2]
[323517784,1714063842842,-517.86,0.00011232,2]
[323517786,1714063842852,-620.30356006,0.00011232,2]
[323517790,1714063842861,-892.09,0.00011232,2]
[323517794,1714063842870,-500.0,0.00011232,2]
[323517797,1714063842880,-5880.19,0.00011232,2]
[323517800,1714063842890,-500.0,0.00011232,2]
[323517803,1714063842900,-500.0,0.00011232,2]
[323517807,1714063842909,-500.0,0.00011232,2]
[323517811,1714063842918,-500.0,0.00011232,2]
[323517814,1714063842928,-573.61,0.00011232,2]
[323517815,1714063842937,-500.0,0.00011232,2]
[323517816,1714063842946,-514.61,0.00011232,2]
[323517817,1714063842956,-500.0,0.00011232,2]
[323517818,1714063842965,-500.0,0.00011232,2]
[323517819,1714063842974,-505.73,0.00011232,2]
[323517820,1714063842983,-733.4,0.00011232,2]
[323517821,1714063842995,-500.0,0.00011232,2]
[323517822,1714063843005,-500.0,0.00011232,2]
[323517823,1714063843014,-1921.67,0.00011232,2]
[323517824,1714063843023,-556.54,0.00011232,2]
[323517825,1714063843032,-500.0,0.00011232,2]
[323517826,1714063843042,-4127.71,0.00011232,2]
[323517827,1714063843051,-4080.18,0.00011232,2]
[323517828,1714063843060,-559.97,0.00011232,2]
[323517829,1714063843070,-500.0,0.00011232,2]
[323517830,1714063843079,-1748.56,0.00011232,2]
[323517831,1714063843089,-751.43,0.00011232,2]
[323517832,1714063843098,-500.0,0.00011232,2]
[323517833,1714063843109,-500.0,0.00011232,2]
[323517834,1714063843118,-500.0,0.00011232,2]
[323517835,1714063843128,-1110.0,0.00011232,2]
[323517836,1714063843138,-500.0,0.00011232,2]
[323517837,1714063843148,-1896.63,0.00011232,2]
[323517838,1714063843157,-568.09,0.00011232,2]
[323517839,1714063843167,-500.0,0.00011232,2]
[323517840,1714063843177,-1450.25,0.00011232,2]
[323517841,1714063843186,-382.01,0.00011232,2]
[323517842,1714063843195,-500.0,0.00011232,2]
[323517843,1714063843204,-584.82,0.00011232,2]
[323517844,1714063843214,-1728.81,0.00011232,2]
[323517845,1714063843224,-567.65,0.00011232,2]
[323517846,1714063843236,-4607.61,0.00011232,2]
[323517847,1714063843250,-3295.21,0.00011232,2]
[323517848,1714063843260,-1608.62,0.00011232,2]
[323517849,1714063843270,-500.0,0.00011232,2]
[323517850,1714063843279,-500.0,0.00011232,2]
[323517851,1714063843289,-1355.4,0.00011232,2]
[323517852,1714063843299,-500.0,0.00011232,2]
[323517853,1714063843310,-836.27,0.00011232,2]
[323517854,1714063843320,-500.0,0.00011232,2]
[323517855,1714063843329,-620.73,0.00011232,2]
[323517856,1714063843339,-1167.67,0.00011232,2]
[323517857,1714063843348,-511.33,0.00011232,2]
[323517858,1714063843357,-500.0,0.00011232,2]
[323517859,1714063843368,-648.56,0.00011232,2]
[323517860,1714063843377,-2263.32,0.00011232,2]
[323517861,1714063843386,-500.0,0.00011232,2]
[323517862,1714063843396,-500.0,0.00011232,2]
[323517863,1714063843405,-500.0,0.00011232,2]
[323517864,1714063843414,-815.47,0.00011232,2]
[323517865,1714063843423,-500.0,0.00011232,2]
[323517866,1714063843433,-564.65,0.00011232,2]
[323517868,1714063843442,-500.0,0.00011232,2]
[323517870,1714063843451,-500.0,0.00011232,2]
[323517871,1714063843460,-500.0,0.00011232,2]
[323517872,1714063843470,-500.0,0.00011232,2]
[323517874,1714063843479,-437.13,0.00011232,2]
[323517876,1714063843490,-500.0,0.00011232,2]
[323517878,1714063843500,-916.57,0.00011232,2]
[323517880,1714063843510,-500.0,0.00011232,2]
[323517881,1714063843519,-500.0,0.00011232,2]
[323517882,1714063843528,-500.0,0.00011232,2]
[323517883,1714063843537,-1126.47,0.00011232,2]
[323517884,1714063843547,-500.0,0.00011232,2]
[323517885,1714063843556,-789.05,0.00011232,2]
[323517886,1714063843565,-500.0,0.00011232,2]
[323517887,1714063843575,-809.84,0.00011232,2]
[323517888,1714063843586,-500.0,0.00011263,2]
[323517889,1714063843595,-188.75867201,0.00011289,2]
[323517890,1714063843604,-236.55933354,0.00011295,2]
[323517891,1714063843618,-167.84294178,0.00011295,2]
[323517892,1714063843627,-179.7000076,0.000113,2]
[323517893,1714063843637,-334.98504859,0.000113,4]
[323517894,1714063843646,-408.61554877,0.000113,2]
[323517895,1714063843655,-6200.0,0.000113,4]
[323517896,1714063843665,-576.35314372,0.00011379,2]
[323517897,1714063843675,-10770.50761268,0.00011389,2]
[323517898,1714063843685,-253.13001085,0.00011396,2]
[323517899,1714063843695,-150.0,0.000114,2]
[323517900,1714063843705,-150.0,0.000114,2]
[323517901,1714063843715,-7700.0,0.000114,4]
[323517902,1714063843724,-2882.7501999,0.00011406,2]
[323517903,1714063843734,-172.29224803,0.00011406,2]
[323517904,1714063843746,-2096.1915,0.00011436,2]
[323517905,1714063843757,-236.5593335,0.00011446,2]
[323517906,1714063843767,-2882.7501998,0.00011451,2]
[323517907,1714063843777,-2882.7501998,0.00011496,2]
[323517908,1714063843787,-48960.3909,0.000115,2]
[323517909,1714063843796,-1500.0,0.000115,4]
[323517910,1714063843806,-483.97382934,0.00011504,2]
[323517911,1714063843816,-32420.35354231,0.00011504,2]
[323517912,1714063843826,-157.23873025,0.00011504,2]
[323517913,1714063843835,-155.18316179,0.00011504,2]
[323517914,1714063843845,-155.0,0.00011504,2]
[323517915,1714063843855,-195.24769107,0.00011504,2]
[323517916,1714063843865,-296.23440643,0.00011504,2]
[323517917,1714063843874,-155.0,0.00011504,2]
[323517918,1714063843883,-2012.88,0.00011505,2]
[323517919,1714063843893,-3006.73,0.00011505,2]
[323517920,1714063843903,-1288.23,0.00011505,2]
[323517921,1714063843912,-500.0,0.00011506,2]
[323517922,1714063843922,-500.0,0.00011506,2]
[323517923,1714063843931,-500.0,0.00011506,2]
[323517924,1714063843940,-500.0,0.00011506,2]
[323517925,1714063843950,-509.28,0.00011506,2]
[323517926,1714063843959,-500.0,0.00011506,2]
[323517927,1714063843968,-500.0,0.00011506,2]
[323517928,1714063843978,-307.91093454,0.00011506,2]
[323517929,1714063843987,-500.0,0.00011506,2]
[323517930,1714063843998,-500.0,0.00011506,2]
[323517931,1714063844011,-500.0,0.00011506,2]
[323517932,1714063844021,-542.13,0.00011506,2]
[323517933,1714063844031,-500.0,0.00011506,2]
[323517934,1714063844041,-500.0,0.00011506,2]
[323517935,1714063844050,-511.12,0.00011506,2]
[323517936,1714063844060,-500.0,0.00011506,2]
[323517937,1714063844070,-500.0,0.00011506,2]
[323517938,1714063844080,-500.0,0.00011506,2]
[323517939,1714063844090,-500.0,0.00011506,2]
[323517940,1714063844101,-608.42,0.00011506,2]
[323517941,1714063844111,-584.58,0.00011506,2]